bitfinex/quotes_BTCUSD_20240810
["timestamp","ask_amount","ask_price","bid_price","bid_amount"]
[1723296975642,1.49656206,60774.0,60773.0,0.64997813]
[1723296976113,0.70814063,60774.0,60773.0,0.64997813]
[1723296976413,0.60963296,60774.0,60773.0,0.64997813]
[1723296977151,0.60963296,60774.0,60773.0,0.73125113]
[1723296977356,0.60963296,60774.0,60773.0,0.84716971]
[1723296977528,0.70963296,60774.0,60773.0,0.73225113]
[1723296977731,0.70963296,60774.0,60773.0,0.84809631]
[1723296978370,0.00563296,60774.0,60773.0,1.17618831]
[1723296978536,0.00563296,60774.0,60773.0,1.34073431]
[1723296978712,0.01063296,60774.0,60773.0,1.33973431]
[1723296978907,0.00563296,60774.0,60773.0,1.33973431]
[1723296979387,0.00480196,60779.0,60778.0,0.553932]
[1723296979588,0.00480196,60779.0,60778.0,0.66977718]
[1723296979736,0.00480196,60779.0,60778.0,1.17415158]
[1723296979947,0.00480196,60779.0,60778.0,1.17382446]
[1723296981668,0.00780196,60779.0,60778.0,1.17382446]
[1723296982639,0.00780196,60779.0,60778.0,1.1778708]
[1723296983891,0.00780196,60779.0,60778.0,1.17382446]
[1723296984332,0.00780196,60779.0,60778.0,1.0583064]
[1723296984552,0.00780196,60779.0,60778.0,1.17369418]
[1723296984754,0.00780196,60779.0,60778.0,1.17380522]
[1723296985090,0.00780196,60779.0,60778.0,1.0583064]
[1723296985501,0.003,60779.0,60778.0,1.17380465]
[1723296986580,0.003,60779.0,60778.0,1.0583064]
[1723296986782,0.003,60779.0,60778.0,1.17406959]
[1723296986783,0.003831,60779.0,60778.0,1.17406959]
[1723296987223,0.003831,60779.0,60778.0,1.17406966]
[1723296988023,0.00863296,60779.0,60778.0,1.17406966]
[1723296988381,0.00863296,60779.0,60778.0,0.8937734]
[1723296988701,0.00863296,60779.0,60778.0,0.7292404]
[1723296990038,0.00863296,60779.0,60778.0,0.6469744]
[1723296990955,0.00863296,60779.0,60778.0,0.7292404]
[1723296991852,0.00863296,60779.0,60778.0,0.6469744]
[1723296992053,0.00863296,60779.0,60778.0,0.5043744]
[1723296992884,0.09089796,60779.0,60778.0,0.5043744]
[1723296993216,0.41924288,60779.0,60778.0,0.5043744]
[1723296993576,0.78130288,60779.0,60778.0,0.5043744]
[1723296993716,0.94062535,60779.0,60778.0,0.5043744]
[1723296993919,0.94062535,60779.0,60778.0,0.4936]
[1723296994165,0.94062535,60779.0,60778.0,0.5043744]
[1723296994320,0.94762535,60779.0,60778.0,0.5043744]
[1723296994516,0.93762535,60779.0,60778.0,0.5043744]
[1723296994730,0.94862535,60779.0,60778.0,0.5053744]
[1723296995183,0.94862535,60779.0,60778.0,0.5063744]
[1723296995554,0.95879826,60779.0,60778.0,0.5053744]
[1723296995754,1.15559826,60779.0,60778.0,0.5053744]
[1723296995960,1.88559826,60779.0,60778.0,0.5053744]
[1723296996160,1.88559826,60779.0,60778.0,0.5063744]
[1723296998528,1.89559826,60779.0,60778.0,0.5063744]
[1723297000393,1.84647579,60779.0,60778.0,0.5063744]
[1723297000598,1.89559826,60779.0,60778.0,0.5063744]
[1723297001361,1.84647579,60779.0,60778.0,0.5063744]
[1723297001804,1.89559826,60779.0,60778.0,0.5063744]
[1723297001934,1.84647579,60779.0,60778.0,0.5063744]
[1723297002120,1.92014452,60779.0,60778.0,0.5063744]
[1723297002521,1.92014333,60779.0,60778.0,0.5063744]
[1723297002740,1.84647579,60779.0,60778.0,0.5063744]
[1723297003162,1.91014328,60779.0,60778.0,0.5063744]
[1723297003512,1.83157579,60779.0,60778.0,0.5063744]
[1723297003714,1.86538797,60779.0,60778.0,0.5063744]
[1723297003920,1.43194579,60779.0,60778.0,0.6418]
[1723297004291,1.43194579,60779.0,60778.0,0.6525744]
[1723297004898,1.26741579,60779.0,60778.0,0.6525744]
[1723297005663,1.43194579,60779.0,60778.0,0.6525744]
[1723297006309,0.52724288,60779.0,60778.0,0.6525744]
[1723297007352,0.36342796,60779.0,60778.0,0.6525744]
[1723297007577,0.19889796,60779.0,60778.0,0.6525744]
[1723297008398,0.01663296,60779.0,60778.0,0.7348404]
[1723297009099,0.01663296,60779.0,60778.0,0.7338404]
[1723297009441,0.01663296,60779.0,60778.0,0.7348404]
[1723297011072,0.01663296,60779.0,60778.0,0.8983734]
[1723297011284,0.00563296,60779.0,60778.0,0.8973734]
[1723297011696,0.01463296,60779.0,60778.0,1.0629064]
[1723297011903,0.01463296,60779.0,60778.0,1.34364728]
[1723297012109,0.048956,60781.0,60780.0,0.411317]
[1723297012280,0.048956,60781.0,60780.0,0.75525188]
[1723297012485,0.048956,60781.0,60780.0,1.33958642]
[1723297012688,0.048956,60781.0,60780.0,1.22337854]
[1723297012823,0.048956,60781.0,60780.0,1.50305535]
[1723297013023,0.048956,60781.0,60780.0,1.55172046]
[1723297013227,0.00490196,60789.0,60788.0,0.411265]
[1723297013431,0.60490196,60789.0,60788.0,1.16384591]
[1723297013691,0.60490196,60789.0,60788.0,1.17452106]
[1723297014268,0.60490196,60789.0,60788.0,1.05866015]
[1723297015101,0.60490196,60789.0,60788.0,0.72964815]
[1723297015342,0.60490196,60789.0,60788.0,0.64739515]
[1723297015550,0.60490196,60789.0,60788.0,0.65344182]
[1723297015749,0.60490196,60789.0,60788.0,0.65144182]
[1723297015919,0.60490196,60789.0,60788.0,0.65644182]
[1723297016172,0.60490196,60789.0,60788.0,0.65844182]
[1723297016404,0.60490196,60789.0,60788.0,0.65439515]
[1723297016573,0.60490196,60789.0,60788.0,0.58419515]
[1723297016783,0.60490196,60789.0,60788.0,0.58719515]
[1723297018126,0.60490196,60789.0,60788.0,0.58419515]
[1723297019074,0.61090196,60789.0,60788.0,0.58519515]
[1723297020782,0.61090196,60789.0,60788.0,0.89515415]
[1723297021480,0.61090196,60789.0,60788.0,0.89415415]
[1723297021481,0.60490196,60789.0,60788.0,0.89415415]
[1723297021681,0.61090196,60789.0,60788.0,0.89515415]
[1723297022057,0.61090196,60789.0,60788.0,0.89415415]
[1723297022058,0.60490196,60789.0,60788.0,0.89415415]
[1723297022274,0.60482981,60789.0,60788.0,0.89415415]
[1723297022447,0.60482981,60789.0,60788.0,0.89515415]
[1723297022448,0.61082981,60789.0,60788.0,0.89515415]
[1723297023631,0.61082981,60789.0,60788.0,1.05966015]
[1723297023632,0.61166081,60789.0,60788.0,1.05966015]
[1723297027567,0.60685885,60789.0,60788.0,1.05966015]
[1723297028347,0.60566081,60789.0,60788.0,1.05866015]
[1723297028547,0.60966081,60789.0,60788.0,1.05866015]
[1723297028974,0.60566081,60789.0,60788.0,1.05866015]
[1723297029179,0.60766081,60789.0,60788.0,1.05866015]
[1723297029415,0.60766081,60789.0,60788.0,1.05966015]
[1723297031127,0.60766081,60789.0,60788.0,1.17602139]
[1723297031328,0.60766081,60789.0,60788.0,1.05966015]
[1723297031762,0.60766081,60789.0,60788.0,1.17501149]
[1723297032000,0.60566081,60789.0,60788.0,1.17501149]
[1723297032157,0.60566081,60789.0,60788.0,1.17701149]
[1723297032362,0.60185885,60789.0,60788.0,1.17701149]
[1723297032982,0.60185885,60789.0,60788.0,1.22516615]
[1723297032983,0.00185885,60789.0,60788.0,1.22516615]
[1723297033163,0.00185885,60789.0,60788.0,1.34148017]
[1723297033553,0.00185885,60789.0,60788.0,1.22516615]
[1723297033729,0.00185885,60789.0,60788.0,1.34154557]
[1723297034235,0.00085885,60789.0,60788.0,1.33941593]
[1723297034645,0.00085885,60789.0,60788.0,1.34241593]
[1723297035024,0.00085885,60789.0,60788.0,1.33941593]
[1723297035226,0.00085885,60789.0,60788.0,1.34441593]
[1723297035428,0.00085885,60789.0,60788.0,1.23116615]
[1723297035751,0.00085885,60789.0,60788.0,1.35327757]
[1723297035929,0.00085885,60789.0,60788.0,1.34527757]
[1723297036164,0.00085885,60789.0,60788.0,1.35327757]
[1723297036332,0.00085885,60789.0,60788.0,1.34827757]
[1723297036695,0.00085885,60789.0,60788.0,1.34834793]
[1723297037429,0.00085885,60789.0,60788.0,1.23208025]
[1723297037637,0.00085885,60789.0,60788.0,1.35347236]
[1723297038055,0.00085885,60789.0,60788.0,1.34547236]
[1723297038603,0.00085885,60789.0,60788.0,1.35347236]
[1723297038806,0.00085885,60789.0,60788.0,1.34547236]
[1723297038932,0.00085885,60789.0,60788.0,1.34047236]
[1723297039333,0.00085885,60789.0,60788.0,1.35347236]
[1723297039534,0.00085885,60789.0,60788.0,1.35391618]
[1723297041772,0.00085885,60789.0,60788.0,1.43251618]
[1723297043395,0.00085885,60789.0,60788.0,1.5963311]
[1723297044320,0.00085885,60789.0,60788.0,1.59665029]
[1723297045039,0.00085885,60789.0,60788.0,1.59661079]
[1723297047008,0.00085885,60789.0,60788.0,1.59666324]
[1723297051107,0.00085885,60789.0,60788.0,1.59681086]
[1723297052095,0.00085885,60789.0,60788.0,1.66512165]
[1723297052268,0.00085885,60789.0,60788.0,1.83588831]
[1723297052444,0.00085885,60789.0,60788.0,1.98572868]
[1723297052644,0.00085885,60789.0,60788.0,1.83588831]
[1723297052851,0.00085885,60789.0,60788.0,1.47949517]
[1723297053027,0.00085885,60789.0,60788.0,1.9907649]
[1723297053718,0.00085885,60789.0,60788.0,2.0937031]
[1723297053927,0.00085885,60789.0,60788.0,1.82669969]
[1723297054137,0.00085885,60789.0,60788.0,2.09363674]
[1723297055561,0.00085885,60789.0,60788.0,2.0884387]
[1723297055790,0.00085885,60789.0,60788.0,1.68151778]
[1723297055994,0.00566081,60789.0,60788.0,1.1265795]
[1723297056440,0.00566081,60789.0,60788.0,0.8820735]
[1723297056646,0.00566081,60789.0,60788.0,0.63503405]
[1723297056854,0.23641181,60789.0,60788.0,0.63503405]
[1723297057258,0.23641181,60789.0,60788.0,0.51810925]
[1723297057537,0.15416081,60789.0,60788.0,0.51810925]
[1723297057689,0.15416081,60789.0,60788.0,0.50510925]
[1723297058015,0.15816081,60789.0,60788.0,0.50510925]
[1723297058516,0.07556081,60789.0,60788.0,0.50510925]
[1723297058731,0.07556081,60789.0,60788.0,0.62106069]
[1723297058732,0.08056081,60789.0,60788.0,0.62106069]
[1723297058943,0.07556081,60789.0,60788.0,0.50510925]
[1723297059100,0.15781181,60789.0,60788.0,0.50510925]
[1723297059851,0.32231481,60789.0,60788.0,0.50510925]
[1723297060075,0.15781181,60789.0,60788.0,0.4944341]
[1723297060470,0.16181181,60789.0,60788.0,0.50510925]
[1723297060672,0.15781181,60789.0,60788.0,0.50510925]
[1723297060883,0.15881181,60789.0,60788.0,0.50510925]
[1723297061087,0.16381181,60789.0,60788.0,0.50510925]
[1723297061668,0.16781181,60789.0,60788.0,0.50510925]
[1723297063785,0.16761382,60789.0,60788.0,0.50510925]
[1723297064743,0.16761382,60789.0,60788.0,0.50469908]
[1723297065469,0.08536282,60789.0,60788.0,0.50469908]
[1723297066653,0.07006282,60789.0,60788.0,0.50469908]
[1723297067058,0.01546282,60789.0,60788.0,0.50469908]
[1723297068236,0.01446282,60789.0,60788.0,0.58695208]
[1723297068402,0.00546282,60789.0,60788.0,0.58695208]
[1723297069016,0.00946282,60789.0,60788.0,0.58695208]
[1723297069234,0.00946282,60789.0,60788.0,0.50469908]
[1723297069637,0.00946282,60789.0,60788.0,0.58695208]
[1723297070257,0.00546282,60789.0,60788.0,0.58695208]
[1723297070691,0.00746282,60789.0,60788.0,0.58695208]
[1723297070865,0.00546282,60789.0,60788.0,0.58795208]
[1723297071260,0.00746282,60789.0,60788.0,0.58695208]
[1723297071669,0.00746282,60789.0,60788.0,0.58795208]
[1723297072207,0.08971382,60789.0,60788.0,0.50569908]
[1723297072422,0.00746282,60789.0,60788.0,0.50569908]
[1723297073323,0.00546282,60789.0,60788.0,0.50569908]
[1723297073748,0.00746282,60789.0,60788.0,0.50569908]
[1723297074005,0.00746282,60789.0,60788.0,0.50469908]
[1723297074548,0.00546282,60789.0,60788.0,0.50569908]
[1723297074909,0.01246282,60789.0,60788.0,0.50569908]
[1723297075126,0.00546282,60789.0,60788.0,0.50469908]
[1723297075479,0.00746282,60789.0,60788.0,0.50569908]
[1723297076854,0.00546282,60789.0,60788.0,0.50469908]
[1723297077061,0.01246282,60789.0,60788.0,0.50569908]
[1723297077447,0.00546282,60789.0,60788.0,0.50469908]
[1723297077848,0.00746282,60789.0,60788.0,0.50469908]
[1723297078073,0.00546282,60789.0,60788.0,0.50569908]
[1723297078209,0.01246282,60789.0,60788.0,0.50669908]
[1723297078409,0.01246282,60789.0,60788.0,0.50569908]
[1723297078770,0.00546282,60789.0,60788.0,0.50469908]
[1723297080111,0.00746282,60789.0,60788.0,0.50469908]
[1723297080665,0.00546282,60789.0,60788.0,0.50469908]
[1723297081051,0.84713474,60789.0,60788.0,0.50469908]
[1723297081315,1.74006715,60789.0,60788.0,0.49502393]
[1723297081537,1.9950577,60789.0,60788.0,0.49502393]
[1723297081666,1.8700577,60789.0,60788.0,0.50466575]
[1723297081872,1.8700577,60789.0,60788.0,0.50566575]
[1723297082074,2.01970182,60789.0,60788.0,0.50566575]
[1723297082299,2.01970182,60789.0,60788.0,0.49502393]
[1723297082502,1.8720577,60789.0,60788.0,0.49502393]
[1723297082725,1.87225003,60789.0,60788.0,0.50566575]
[1723297082932,1.87225003,60789.0,60788.0,0.49502393]
[1723297083131,1.87225003,60789.0,60788.0,0.50566575]
[1723297083329,1.87025003,60789.0,60788.0,0.50566575]
[1723297083752,1.88425003,60789.0,60788.0,0.50666575]
[1723297083966,1.87034676,60789.0,60788.0,0.49402393]
[1723297084180,1.87334676,60789.0,60788.0,0.50566575]
[1723297084368,1.88734676,60789.0,60788.0,0.50666575]
[1723297084588,1.87334676,60789.0,60788.0,0.50566575]
[1723297084751,1.87334676,60789.0,60788.0,0.50466575]
[1723297084752,1.87034676,60789.0,60788.0,0.50466575]
[1723297084961,1.88934676,60789.0,60788.0,0.50666575]
[1723297085957,2.05349646,60789.0,60788.0,0.49602393]
[1723297086163,1.88934676,60789.0,60788.0,0.49602393]
[1723297086607,1.89910305,60789.0,60788.0,0.0029141]
[1723297087872,0.48605396,60775.0,60773.0,0.0009141]
[1723297088071,1.00310988,60775.0,60773.0,0.0009141]
[1723297089369,0.99310988,60775.0,60773.0,0.0009141]
[1723297089905,0.91440988,60775.0,60773.0,0.0009141]
[1723297090108,0.92440988,60775.0,60773.0,0.0009141]
[1723297090317,0.92840988,60775.0,60773.0,0.0009141]
[1723297090700,0.93640988,60775.0,60774.0,0.0019141]
[1723297091208,2.04062483,60775.0,60774.0,0.0019141]
[1723297091582,1.99155046,60775.0,60774.0,0.0019141]
[1723297091909,2.04055407,60775.0,60774.0,0.0019141]
[1723297092084,2.04646353,60775.0,60774.0,0.0019141]
[1723297092465,1.99745992,60775.0,60774.0,0.0019141]
[1723297092664,1.97745992,60775.0,60774.0,0.0019141]
[1723297092867,1.83986034,60775.0,60774.0,0.0019141]
[1723297093077,1.83186034,60775.0,60774.0,0.0009141]
[1723297093417,1.85386034,60775.0,60774.0,0.0009141]
[1723297093622,1.85986034,60775.0,60774.0,0.0019141]
[1723297093771,1.86986034,60775.0,60774.0,0.0019141]
[1723297093979,2.04801004,60775.0,60774.0,0.0019141]
[1723297094225,2.04801004,60775.0,60774.0,0.0009141]
[1723297094226,2.02601004,60775.0,60774.0,0.0009141]
[1723297094538,2.17801766,60775.0,60774.0,0.0009141]
[1723297095051,2.17801766,60775.0,60774.0,0.0019141]
[1723297095052,2.05301004,60775.0,60774.0,0.0019141]
[1723297095612,2.04001004,60775.0,60774.0,0.0009141]
[1723297095989,1.86186034,60775.0,60774.0,0.0009141]
[1723297096398,1.87586034,60775.0,60774.0,0.0009141]
[1723297096630,1.86186034,60775.0,60774.0,0.0009141]
[1723297097041,1.87386034,60775.0,60774.0,0.0019141]
[1723297097253,1.86386034,60775.0,60774.0,0.0019141]
[1723297097469,1.85586034,60775.0,60774.0,0.0009141]
[1723297097804,1.84186034,60775.0,60774.0,0.0009141]
[1723297097999,1.84986034,60775.0,60774.0,0.0019141]
[1723297098139,1.84856034,60775.0,60774.0,0.0019141]
[1723297098315,1.84056034,60775.0,60774.0,0.0009141]
[1723297098515,1.86056034,60775.0,60774.0,0.0009141]
[1723297098714,1.86856034,60775.0,60774.0,0.0019141]
[1723297099776,1.85456034,60775.0,60774.0,0.0019141]
[1723297100353,1.86856034,60775.0,60774.0,0.0019141]
[1723297100554,1.84056034,60775.0,60774.0,0.0009141]
[1723297100977,1.83856034,60775.0,60774.0,0.0019141]
[1723297101432,1.77596034,60775.0,60774.0,0.0760141]
[1723297101633,1.61141934,60775.0,60774.0,0.1404141]
[1723297101775,1.61941934,60775.0,60774.0,0.1414141]
[1723297102190,1.58841934,60775.0,60774.0,0.1404141]
[1723297102600,1.59641934,60775.0,60774.0,0.1414141]
[1723297103006,1.58241934,60775.0,60774.0,0.1414141]
[1723297103214,1.59641934,60775.0,60774.0,0.1414141]
[1723297103619,1.58241934,60775.0,60774.0,0.1414141]
[1723297103832,1.60641934,60775.0,60774.0,0.0019141]
[1723297104195,1.66101934,60775.0,60774.0,0.0019141]
[1723297104646,1.82556034,60775.0,60774.0,0.0019141]
[1723297104844,1.99526405,60775.0,60774.0,0.0019141]
[1723297105083,2.01056405,60775.0,60774.0,0.0019141]
[1723297105483,2.00056405,60775.0,60774.0,0.0019141]
[1723297106002,2.01056405,60775.0,60774.0,0.0019141]
[1723297106481,0.77524996,60774.0,60773.0,0.0009141]
[1723297106635,0.47853296,60770.0,60769.0,0.0009141]
[1723297106843,1.73145588,60770.0,60769.0,0.0009141]
[1723297107046,1.88900988,60770.0,60769.0,0.0009141]
[1723297107852,1.89900988,60770.0,60769.0,0.0009141]
[1723297108377,1.98737582,60770.0,60769.0,0.0009141]
[1723297108589,1.99537582,60770.0,60769.0,0.0019141]
[1723297108989,1.99537577,60770.0,60769.0,0.0019141]
[1723297109212,1.98737577,60770.0,60769.0,0.0009141]
[1723297109426,1.98737577,60770.0,60769.0,0.0019141]
[1723297109626,1.99537577,60770.0,60769.0,0.0019141]
[1723297109760,1.90700988,60770.0,60769.0,0.0019141]
[1723297109946,2.00937192,60770.0,60769.0,0.0019141]
[1723297110143,1.99537192,60770.0,60769.0,0.0019141]
[1723297110569,2.00937192,60770.0,60769.0,0.0019141]
[1723297110770,2.00137192,60770.0,60769.0,0.0009141]
[1723297111207,2.01127416,60770.0,60769.0,0.0019141]
[1723297111359,2.17542386,60770.0,60769.0,0.0019141]
[1723297111565,2.26532386,60770.0,60769.0,0.0019141]
[1723297112811,2.09117416,60770.0,60769.0,0.0019141]
[1723297113408,2.10117416,60770.0,60769.0,0.0019141]
[1723297113749,2.11696572,60770.0,60769.0,0.0019141]
[1723297114707,2.02870144,60770.0,60769.0,0.0019141]
[1723297114835,2.11748739,60770.0,60769.0,0.0019141]
[1723297115261,2.30073147,60770.0,60769.0,0.0019141]
[1723297115460,2.32519868,60770.0,60769.0,0.0019141]
[1723297115673,2.13369705,60770.0,60769.0,0.0019141]
[1723297116143,2.14369705,60770.0,60769.0,0.0019141]
[1723297116324,2.18264156,60770.0,60769.0,0.0019141]
[1723297116541,2.20709868,60770.0,60769.0,0.0019141]
[1723297116753,2.13369705,60770.0,60769.0,0.0019141]
[1723297116886,2.21709868,60770.0,60769.0,0.0019141]
[1723297117296,2.19263219,60770.0,60769.0,0.0019141]
[1723297117487,2.21709868,60770.0,60769.0,0.0019141]
[1723297117694,2.20709868,60770.0,60769.0,0.0019141]
[1723297118121,2.18263909,60770.0,60769.0,0.0019141]
[1723297118321,2.19263909,60770.0,60769.0,0.0019141]
[1723297118526,2.12268537,60770.0,60769.0,0.0019141]
[1723297118943,2.07374235,60770.0,60769.0,0.0019141]
[1723297119271,2.07373969,60770.0,60769.0,0.0019141]
[1723297119521,2.14714132,60770.0,60769.0,0.0019141]
[1723297120054,2.00783166,60770.0,60769.0,0.0019141]
[1723297120454,1.92443003,60770.0,60769.0,0.0019141]
[1723297121012,1.93443003,60770.0,60769.0,0.0019141]
[1723297121218,1.92443003,60770.0,60769.0,0.0019141]
[1723297121804,2.02237557,60770.0,60769.0,0.0019141]
[1723297122439,2.04731104,60770.0,60769.0,0.0019141]
[1723297123373,2.21146074,60770.0,60769.0,0.0019141]
[1723297123575,2.10432881,60770.0,60769.0,0.0019141]
[1723297125039,1.93487911,60770.0,60769.0,0.0019141]
[1723297125696,2.08206527,60770.0,60769.0,0.0019141]
[1723297126216,1.93487911,60770.0,60769.0,0.0019141]
[1723297127492,1.84570144,60770.0,60769.0,0.0019141]
[1723297127691,1.93464806,60770.0,60769.0,0.0019141]
[1723297127953,2.08183422,60770.0,60769.0,0.0019141]
[1723297128155,2.24598392,60770.0,60769.0,0.0019141]
[1723297128574,2.09879776,60770.0,60769.0,0.0019141]
[1723297129269,2.08896773,60770.0,60769.0,0.0019141]
[1723297129502,2.16886773,60770.0,60769.0,0.0019141]
[1723297129838,2.15886773,60770.0,60769.0,0.0019141]
[1723297131270,2.15969873,60770.0,60769.0,0.0019141]
[1723297131987,2.15439873,60770.0,60769.0,0.0019141]
[1723297132290,2.09979873,60770.0,60769.0,0.0019141]
[1723297132926,2.07400717,60770.0,60769.0,0.0019141]
[1723297133130,2.06400717,60770.0,60769.0,0.0019141]
[1723297133624,1.90985747,60770.0,60769.0,0.0642141]
[1723297135100,1.81105747,60770.0,60769.0,0.0642141]
[1723297135270,1.87985747,60770.0,60769.0,0.0642141]
[1723297135405,1.87985747,60770.0,60769.0,0.1429141]
[1723297135617,1.95857943,60770.0,60769.0,0.1429141]
[1723297135843,2.03737943,60770.0,60769.0,0.1429141]
[1723297136673,2.02737943,60770.0,60769.0,0.1429141]
[1723297137073,1.94826284,60770.0,60769.0,0.1429141]
[1723297137567,2.03702424,60770.0,60769.0,0.1429141]
[1723297138386,1.88950228,60770.0,60769.0,0.1429141]
[1723297138569,1.88945868,60770.0,60769.0,0.1429141]
[1723297139385,1.88945868,60770.0,60769.0,0.0806141]
[1723297139591,1.90945868,60770.0,60769.0,0.0019141]
[1723297142428,1.9093216,60770.0,60769.0,0.0019141]
[1723297145460,1.9093216,60770.0,60769.0,0.0806141]
[1723297145685,1.8793216,60770.0,60769.0,0.1429141]
[1723297146259,1.8893216,60770.0,60769.0,0.1429141]
[1723297146671,1.8793216,60770.0,60769.0,0.1429141]
[1723297147551,1.87905141,60770.0,60769.0,0.1429141]
[1723297148483,2.03663027,60770.0,60769.0,0.1429141]
[1723297148678,1.88905141,60770.0,60769.0,0.1429141]
[1723297149939,2.05502445,60770.0,60769.0,0.1429141]
[1723297150446,1.88905141,60770.0,60769.0,0.1429141]
[1723297150646,1.88905141,60770.0,60769.0,0.0806141]
[1723297151430,1.80074088,60770.0,60769.0,0.0806141]
[1723297151606,1.88894687,60770.0,60769.0,0.0806141]
[1723297151807,1.88864138,60770.0,60769.0,0.0806141]
[1723297153241,1.88863435,60770.0,60769.0,0.0806141]
[1723297153640,1.80074088,60770.0,60769.0,0.0806141]
[1723297153826,1.90878464,60770.0,60769.0,0.0019141]
[1723297155130,1.82074088,60770.0,60769.0,0.0019141]
[1723297155333,1.90921951,60770.0,60769.0,0.0019141]
[1723297156509,1.97548763,60770.0,60769.0,0.0019141]
[1723297156875,1.99078763,60770.0,60769.0,0.0019141]
[1723297157295,1.98078763,60770.0,60769.0,0.0019141]
[1723297157499,1.99078763,60770.0,60769.0,0.0019141]
[1723297158290,1.902309,60770.0,60769.0,0.0019141]
[1723297158495,1.99074198,60770.0,60769.0,0.0019141]
[1723297158829,1.902309,60770.0,60769.0,0.0019141]
[1723297159039,1.99073832,60770.0,60769.0,0.0019141]
[1723297160482,1.892309,60770.0,60769.0,0.0019141]
[1723297160632,1.98073928,60770.0,60769.0,0.0019141]
[1723297161087,1.97543928,60770.0,60769.0,0.0019141]
[1723297161664,1.83037116,60770.0,60769.0,0.0019141]
[1723297161897,1.90917116,60770.0,60769.0,0.1444141]
[1723297162131,1.88917116,60770.0,60769.0,0.1444141]
[1723297162631,1.82074088,60770.0,60769.0,0.1444141]
[1723297162857,1.9091786,60770.0,60769.0,0.1444141]
[1723297163394,1.90832616,60770.0,60769.0,0.1444141]
[1723297164001,1.79952616,60770.0,60769.0,0.1444141]
[1723297164172,1.88832616,60770.0,60769.0,0.1444141]
[1723297164356,1.72377216,60770.0,60769.0,0.1444141]
[1723297166659,1.72322773,60770.0,60769.0,0.1444141]
[1723297168702,1.63618688,60770.0,60769.0,0.3444141]
[1723297168929,1.72307729,60770.0,60769.0,0.3444141]
[1723297170512,1.72297642,60770.0,60769.0,0.3444141]
[1723297172801,1.71297642,60770.0,60769.0,0.3444141]
[1723297173759,1.62618688,60770.0,60769.0,0.3444141]
[1723297174029,1.71289942,60770.0,60769.0,0.3444141]
[1723297174242,1.62618688,60770.0,60769.0,0.3444141]
[1723297174528,1.71276836,60770.0,60769.0,0.3444141]
[1723297174939,1.7127648,60770.0,60769.0,0.3444141]
[1723297175755,1.7227648,60770.0,60769.0,0.3444141]
[1723297175988,1.7127648,60770.0,60769.0,0.3444141]
[1723297176986,1.7227648,60770.0,60769.0,0.3444141]
[1723297177488,1.72288442,60770.0,60769.0,0.3444141]
[1723297177698,1.71288442,60770.0,60769.0,0.3444141]
[1723297178138,1.7128607,60770.0,60769.0,0.3444141]
[1723297178397,1.71285905,60770.0,60769.0,0.3444141]
[1723297178578,1.86044403,60770.0,60769.0,0.3444141]
[1723297179972,1.86044758,60770.0,60769.0,0.3444141]
[1723297180378,1.87044758,60770.0,60769.0,0.3444141]
[1723297180579,1.72285905,60770.0,60769.0,0.3444141]
[1723297180804,1.72263187,60770.0,60769.0,0.3444141]
[1723297181159,1.71263187,60770.0,60769.0,0.3444141]
[1723297181357,1.86022828,60770.0,60769.0,0.3444141]
[1723297181963,1.87022828,60770.0,60769.0,0.3444141]
[1723297182804,1.86022828,60770.0,60769.0,0.3444141]
[1723297183957,1.85522828,60770.0,60769.0,0.3444141]
[1723297184925,1.85521919,60770.0,60769.0,0.3444141]
[1723297186294,1.85563152,60770.0,60769.0,0.3444141]
[1723297186905,1.86563152,60770.0,60769.0,0.3444141]
[1723297187934,1.7787742,60770.0,60769.0,0.3444141]
[1723297188259,1.85554416,60770.0,60769.0,0.3444141]
[1723297189399,1.85553844,60770.0,60769.0,0.3444141]
[1723297189810,1.85553992,60770.0,60769.0,0.3444141]
[1723297190669,1.76876996,60770.0,60769.0,0.3444141]
[1723297190868,1.8555228,60770.0,60769.0,0.3444141]
[1723297194024,1.855523,60770.0,60769.0,0.3444141]
[1723297194455,1.85544577,60770.0,60769.0,0.3444141]
[1723297195107,1.85544644,60770.0,60769.0,0.3444141]
[1723297195937,1.88123575,60770.0,60769.0,0.3444141]
[1723297196596,1.73365247,60770.0,60769.0,0.3444141]
[1723297197654,1.73360428,60770.0,60769.0,0.3444141]
[1723297198327,1.64697619,60770.0,60769.0,0.3444141]
[1723297198549,1.64697619,60770.0,60769.0,0.2019141]
[1723297198550,1.73354095,60770.0,60769.0,0.2019141]
[1723297198800,1.92956224,60770.0,60769.0,0.2019141]
[1723297199233,2.09411624,60770.0,60769.0,0.2019141]
[1723297199675,2.09427961,60770.0,60769.0,0.2019141]
[1723297199880,2.08427961,60770.0,60769.0,0.2019141]
[1723297200111,2.09427961,60770.0,60769.0,0.2019141]
[1723297200747,1.92825832,60770.0,60769.0,0.2019141]
[1723297201371,2.09428437,60770.0,60769.0,0.2019141]
[1723297202009,2.00755624,60770.0,60769.0,0.2019141]
[1723297202223,2.09425676,60770.0,60769.0,0.2019141]
[1723297202695,1.92823071,60770.0,60769.0,0.2019141]
[1723297203328,2.09238041,60770.0,60769.0,0.2019141]
[1723297204161,2.08238041,60770.0,60769.0,0.2019141]
[1723297204796,2.09238041,60770.0,60769.0,0.2019141]
[1723297205255,2.08238041,60770.0,60769.0,0.2019141]
[1723297205489,2.09238041,60770.0,60769.0,0.2019141]
[1723297205928,2.09238974,60770.0,60769.0,0.2019141]
[1723297207012,2.09240171,60770.0,60769.0,0.2019141]
[1723297207404,2.08240171,60770.0,60769.0,0.2019141]
[1723297207741,2.09240171,60770.0,60769.0,0.2019141]
[1723297207941,2.08240171,60770.0,60769.0,0.2019141]
[1723297208150,2.09240171,60770.0,60769.0,0.2019141]
[1723297208351,2.08240171,60770.0,60769.0,0.2019141]
[1723297208554,1.91825201,60770.0,60769.0,0.2019141]
[1723297209807,1.91823014,60770.0,60769.0,0.2019141]
[1723297210210,1.91823015,60770.0,60769.0,0.2019141]
[1723297212356,1.92823015,60770.0,60769.0,0.2019141]
[1723297212510,1.92823015,60770.0,60769.0,0.2772141]
[1723297213127,1.90244084,60770.0,60769.0,0.2772141]
[1723297213720,1.90225078,60770.0,60769.0,0.2772141]
[1723297216207,1.90225078,60770.0,60769.0,0.2019141]
[1723297217199,1.81574088,60770.0,60769.0,0.2019141]
[1723297217373,2.06647635,60770.0,60769.0,0.2019141]
[1723297217575,1.97989058,60770.0,60769.0,0.2019141]
[1723297217783,2.06648991,60770.0,60769.0,0.2019141]
[1723297218223,2.09228261,60770.0,60769.0,0.2019141]
[1723297219233,1.99568328,60770.0,60769.0,0.2019141]
[1723297219444,1.98272057,60770.0,60769.0,0.2019141]
[1723297219754,2.51292506,60770.0,60769.0,0.2019141]
[1723297219890,2.22729806,60770.0,60769.0,0.2019141]
[1723297220100,2.17269806,60770.0,60769.0,0.2019141]
[1723297220305,2.02645357,60770.0,60769.0,0.2009141]
[1723297220756,2.03945357,60770.0,60769.0,0.2019141]
[1723297220958,2.02545357,60770.0,60769.0,0.2019141]
[1723297221157,2.02645357,60770.0,60769.0,0.2009141]
[1723297221416,2.04045357,60770.0,60769.0,0.2009141]
[1723297221556,2.04945357,60770.0,60769.0,0.2019141]
[1723297221769,1.95286658,60770.0,60769.0,0.2019141]